fUST/lending_fUST_20250912
["ID","MTS","AMOUNT","RATE_DAILY","PERIOD"]
[385196659,1757681465348,-500.0,0.0002752,20]
[385196660,1757681465357,-500.0,0.0002752,20]
[385196661,1757681465366,-500.0,0.0002752,5]
[385196662,1757681465375,-500.0,0.0002752,5]
[385196663,1757681465385,-500.0,0.0002752,20]
[385196664,1757681465394,-500.0,0.0002752,5]
[385196665,1757681465403,-500.0,0.0002752,5]
[385196666,1757681465414,-155.26667007,0.00027525,2]
[385196667,1757681465425,-173.59676307,0.00027525,2]
[385196668,1757681465434,-1424.66331159,0.00027525,2]
[385196669,1757681465443,-457.14271674,0.00027554,2]
[385196670,1757681465453,-1206.75,0.00027555,15]
[385196671,1757681465464,-8008.25,0.000276,7]
[385196672,1757681465473,-152.22222557,0.0002762,2]
[385196673,1757681465482,-155.26667007,0.00027625,2]
[385196674,1757681465491,-173.59676307,0.00027625,2]
[385196675,1757681465500,-1424.66331159,0.00027625,2]
[385196676,1757681465510,-1206.75,0.00027655,15]
[385196677,1757681465519,-531.0,0.00027672,2]
[385196678,1757681465533,-500.0,0.00027713,2]
[385196679,1757681465545,-152.22222557,0.0002772,2]
[385196680,1757681465556,-500.0,0.00027721,2]
[385196681,1757681465566,-155.26667007,0.00027725,2]
[385196682,1757681465575,-1424.66331159,0.00027725,2]
[385196683,1757681465584,-1206.75,0.00027755,15]
[385196684,1757681465593,-152.22222557,0.0002782,2]
[385196685,1757681465602,-155.26667007,0.00027825,2]
[385196686,1757681465611,-1424.66331159,0.00027825,2]
[385196687,1757681465620,-1100.0,0.00027829,2]
[385196688,1757681465630,-200.0,0.00027834,120]
[385196689,1757681465639,-500.0,0.00027835,2]
[385196690,1757681465648,-1100.0,0.0002784,2]
[385196691,1757681465658,-1206.75,0.00027855,15]
[385196692,1757681465667,-153.188836,0.00027858,7]
[385196693,1757681465677,-208.0,0.0002787,30]
[385196694,1757681465686,-1941.80269697,0.00027888,8]
[385196695,1757681465695,-169.45625432,0.000279,5]
[385196696,1757681465704,-152.22222557,0.0002792,2]
[385196697,1757681465713,-500.0,0.0002792,5]
[385196698,1757681465723,-155.26667007,0.00027925,2]
[385196699,1757681465732,-1424.66331159,0.00027925,2]
[385196700,1757681465741,-1100.0,0.00027927,2]
[385196701,1757681465750,-1000.0,0.00027945,5]
[385196702,1757681465759,-531.0,0.00027946,2]
[385196703,1757681465768,-1100.0,0.00027946,2]
[385196704,1757681465777,-1206.75,0.00027955,15]
[385196705,1757681465791,-200.0,0.00027974,120]
[385196706,1757681465802,-457.14271674,0.00027976,2]
[385196707,1757681465811,-500.0,0.00027977,2]
[385196708,1757681465821,-500.0,0.00027994,2]
[385196709,1757681465831,-7706.91699619,0.00028,120]
[385196710,1757681465841,-1000.0,0.00028,120]
[385196711,1757681465850,-28901.07235037,0.00028,60]
[385196712,1757681465911,-2841.62542556,0.00028,60]
[385196713,1757681465922,-761.82982159,0.00028,60]
[385196714,1757681465962,500.0,0.00013197,2]
[385196715,1757681466141,253.31402703,0.00013197,2]
[385196716,1757681466163,246.68597297,0.00013197,2]
[385196717,1757681466192,500.0,0.00013197,2]
[385196718,1757681466228,620.0,0.00013197,2]
[385196719,1757681466274,1757.495238,0.000151,7]
[385196720,1757681466337,500.0,0.00013197,2]
[385196721,1757681466367,500.0,0.00013197,2]
[385196722,1757681466403,500.0,0.00013197,2]
[385196723,1757681466436,500.0,0.00013197,2]
[385196724,1757681466468,500.0,0.00013197,2]
[385196725,1757681466501,500.0,0.00013197,2]
[385196726,1757681466534,500.0,0.00013197,2]
[385196727,1757681466564,500.0,0.00013197,2]
[385196728,1757681466594,500.0,0.00013197,2]
[385196729,1757681466624,500.0,0.00013197,2]
[385196730,1757681466654,500.0,0.00013197,2]
[385196731,1757681466683,500.0,0.00013197,2]
[385196732,1757681466712,500.0,0.00013197,2]
[385196733,1757681466741,500.0,0.00013197,2]
[385196734,1757681466771,500.0,0.00013197,2]
[385196735,1757681466801,500.0,0.00013197,2]
[385196736,1757681466832,500.0,0.00013197,2]
[385196737,1757681466870,133.32402703,0.00013197,2]
[385196738,1757681466892,366.67597297,0.00013197,2]
[385196739,1757681466922,500.0,0.00013197,2]
[385196740,1757681466952,500.0,0.00013197,2]
[385196741,1757681466982,590.72575059,0.00013197,2]
[385196742,1757681467012,500.0,0.00013197,2]
[385196743,1757681467042,500.0,0.00013197,2]
[385196744,1757681467072,500.0,0.00013197,2]
[385196745,1757681467107,500.0,0.00013197,2]
[385196746,1757681467227,500.0,0.00013197,2]
[385196747,1757681467264,500.0,0.00013197,2]
[385196748,1757681467293,500.0,0.00013197,2]
[385196749,1757681467335,300.0,0.00013196,2]
[385196750,1757681467464,1757.495238,0.000151,7]
[385196754,1757681492668,653.22663643,0.00027397,120]
[385196755,1757681510633,499.99999999,0.00013197,2]
[385196756,1757681519766,1000.0,0.00027397,120]
[385196757,1757681523305,500.0,0.00013197,2]
[385196758,1757681523354,500.0,0.00013197,2]
[385196759,1757681523385,621.41103035,0.00013197,2]
[385196760,1757681523415,515.46543759,0.00013197,2]
[385196761,1757681527189,1605.73180851,0.00013198,2]
[385196762,1757681527212,10000.01,0.00013198,2]
[385196763,1757681527235,10000.01,0.00013198,2]
[385196764,1757681527259,10000.01,0.00013198,2]
[385196765,1757681527282,10000.01,0.00013198,2]
[385196766,1757681527305,10000.01,0.00013198,2]
[385196767,1757681527328,10000.01,0.00013198,2]
[385196768,1757681527350,10000.01,0.00013198,2]
[385196769,1757681527375,10000.01,0.00013198,2]
[385196770,1757681527398,10000.01,0.00013198,2]
[385196771,1757681528481,500.0,0.00013197,2]
[385196772,1757681528572,500.0,0.00013197,2]
[385196773,1757681528646,379.67843668,0.00013197,2]
[385196774,1757681532059,1200.0,0.00013197,2]
[385196775,1757681543901,-10000.01,0.00013198,2]
[385196776,1757681544037,-10000.01,0.00013198,2]
[385196777,1757681544203,-10000.01,0.00013198,2]
[385196778,1757681544359,-10000.01,0.00013198,2]
[385196779,1757681544475,-10000.01,0.00013198,2]
[385196780,1757681544679,-10000.01,0.00013198,2]
[385196781,1757681544808,-10000.01,0.00013198,2]
[385196782,1757681545002,-10000.01,0.00013198,2]
[385196783,1757681551660,10000.0,0.0001264,2]
[385196784,1757681553647,-10000.01,0.00013198,2]
[385196785,1757681553779,-10000.01,0.00013198,2]
[385196786,1757681553915,-10000.01,0.00013198,2]
[385196787,1757681554039,-10000.01,0.00013198,2]
[385196788,1757681554157,-10000.01,0.00013198,2]
[385196789,1757681554308,-10000.01,0.00013198,2]
[385196790,1757681554447,-10000.01,0.00013198,2]
[385196791,1757681554589,-10000.01,0.00013198,2]
[385196792,1757681554775,-10000.01,0.00013198,2]
[385196793,1757681563657,500.0,0.00013197,2]
[385196794,1757681563691,-385.21536661,0.00013198,2]
[385196795,1757681563715,-9229.57926678,0.00013198,2]
[385196796,1757681563749,240.30201628,0.00013197,2]
[385196797,1757681563786,152.51240527,0.00013197,2]
[385196798,1757681563893,500.0,0.00013197,2]
[385196799,1757681563925,500.0,0.00013197,2]
[385196800,1757681563960,500.0,0.00013197,2]
[385196801,1757681563992,283.51008926,0.00013197,2]
[385196802,1757681564023,500.0,0.00013197,2]
[385196803,1757681564061,500.0,0.00013197,2]
[385196804,1757681564117,500.0,0.00013197,2]
[385196805,1757681571291,1551.91677143,0.00013192,2]
[385196806,1757681597219,5164.58313931,0.00012863,2]
[385196807,1757681597241,2576.23875889,0.00012863,2]
[385196809,1757681697996,4500.0,0.00013192,2]
[385196810,1757681725719,175.3632513,0.00012705,2]
[385196812,1757681790571,-2400.0,0.00013324,2]
[385196813,1757681800951,542.77,0.00012329,2]
[385196814,1757681809822,2782.9985277,0.00012686,2]
[385196815,1757681810919,300.0,0.00013323,2]
[385196816,1757681811975,452.31,0.00012329,2]
[385196824,1757681822365,376.92,0.00012329,2]
[385196825,1757681833031,314.1,0.00012329,2]
[385196826,1757681843451,261.75,0.00012329,2]
[385196827,1757681850048,890.7809152,0.00012551,2]
[385196828,1757681853910,218.13,0.00012329,2]
[385196829,1757681864452,181.77,0.00012329,2]
[385196830,1757681875177,151.48,0.00012329,2]
[385196831,1757681885679,757.4,0.00012329,2]
[385196832,1757681892545,178.054193,0.00012651,2]
[385196833,1757681892929,178.054193,0.00012651,61]
[385196834,1757681893143,178.054193,0.00012651,120]
[385196835,1757681907643,-1221.32252783,0.00013324,2]
[385196836,1757682330229,666.0,0.00012573,2]
[385196861,1757682483940,402.0359524,0.00027397,120]
[385196866,1757682557510,714.0,0.00027397,120]
[385196867,1757682559561,435.20341671,0.00013056,2]
[385196868,1757682559876,217.60170836,0.00013095,2]
[385196873,1757682583319,10000.0,0.00012539,2]
[385196917,1757682632694,-617.99107297,0.000134,2]
[385196919,1757682632706,-337.07291127,0.000134,2]
[385196930,1757682638418,-543.64225088,0.000134,2]
[385196931,1757682638429,-1200.0,0.00013456,2]
[385196932,1757682638438,-300.0,0.00013456,2]
[385196933,1757682638447,-300.0,0.00013456,2]
[385196934,1757682638457,-300.0,0.00013456,2]
[385196935,1757682638466,-300.0,0.00013456,2]
[385196936,1757682638475,-1200.0,0.00013456,2]
[385196937,1757682638485,-300.0,0.0001346,2]
[385196938,1757682638495,-300.0,0.0001346,2]
[385196939,1757682638504,-300.0,0.0001346,2]
[385196940,1757682638513,-300.0,0.0001346,2]
[385196941,1757682638523,-300.0,0.0001346,2]
[385196942,1757682638531,-300.0,0.0001346,2]
[385196943,1757682638540,-300.0,0.0001346,2]
[385196944,1757682638550,-300.0,0.0001346,2]
[385196945,1757682638558,-300.0,0.0001346,2]
[385196946,1757682638567,-300.0,0.0001346,2]
[385196947,1757682638577,-300.0,0.0001346,2]
[385196948,1757682638586,-300.0,0.0001346,2]
[385196949,1757682638595,-300.0,0.0001346,2]
[385196950,1757682638605,-300.0,0.0001346,2]
[385196951,1757682638614,-300.0,0.0001346,2]
[385196952,1757682638623,-50000.0,0.0001346,2]
[385196953,1757682638632,-2901.96265643,0.000135,2]
[385196954,1757682638642,-14238.07508913,0.000135,2]
[385196955,1757682638651,-500.0,0.00013596,2]
[385196956,1757682638660,-500.0,0.00013596,2]
[385196957,1757682638669,-237.09318129,0.00013596,2]
[385196958,1757682638678,-255.34674414,0.00013596,2]
[385196959,1757682638688,-500.0,0.00013596,2]
[385196960,1757682638697,-500.0,0.00013596,2]
[385196961,1757682638707,-500.0,0.00013596,2]
[385196962,1757682638716,-500.0,0.00013596,2]
[385196963,1757682638725,-500.0,0.00013596,2]
[385196964,1757682638734,-481.89656764,0.00013597,2]
[385196965,1757682638743,-608.19673133,0.00013597,2]
[385196966,1757682638753,-1000.0,0.00013598,2]
[385196967,1757682638761,-370000.0,0.00013598,2]
[385196968,1757682638772,-151.0,0.000136,2]
[385196969,1757682638781,-3032.996174,0.00013673,2]
[385196970,1757682638790,-480.0,0.00013673,2]
[385196971,1757682638799,-500.68417353,0.00013673,2]
[385196972,1757682638809,-500.0,0.00013673,2]
[385196973,1757682638822,-500.0,0.00013673,2]
[385196974,1757682638832,-503.32287411,0.00013673,2]
[385196975,1757682638841,-500.0,0.00013673,2]
[385196976,1757682638850,-501.13865925,0.00013673,2]
[385196977,1757682638860,-500.0,0.00013673,2]
[385196978,1757682638869,-500.0,0.00013673,2]
[385196979,1757682638879,-500.0,0.00013673,2]
[385196980,1757682638889,-500.0,0.00013673,2]
[385196981,1757682638898,-306.44933352,0.00013673,2]
[385196982,1757682638908,-500.0,0.00013673,2]
[385196983,1757682638918,-500.0,0.00013673,2]
[385196984,1757682638927,-480.0,0.00013673,2]
[385196985,1757682638936,-500.0,0.00013673,2]
[385196986,1757682638944,-520.0,0.00013673,2]
[385196987,1757682638954,-500.0,0.00013673,2]
[385196988,1757682638963,-500.0,0.00013673,2]
[385196989,1757682638973,-500.0,0.00013673,2]
[385196990,1757682638982,-500.0,0.00013673,2]
[385196991,1757682638991,-500.0,0.00013673,2]
[385196992,1757682639000,-500.0,0.00013673,2]
[385196993,1757682639009,-500.0,0.00013673,2]
[385196994,1757682639019,-500.0,0.00013673,2]
[385196995,1757682639028,-161.02447822,0.00013673,2]
[385196996,1757682639037,-500.0,0.00013673,2]
[385196997,1757682639046,-500.0,0.00013673,2]
[385196998,1757682639055,-500.0,0.00013673,2]
[385196999,1757682639064,-500.0,0.00013673,2]
[385197000,1757682639073,-480.0,0.00013698,2]
[385197001,1757682639083,-485.18998501,0.00013698,2]
[385197002,1757682639092,-480.0,0.00013698,2]
[385197003,1757682639102,-348.49088556,0.00013698,2]
[385197004,1757682639111,-502.31883609,0.00013698,2]
[385197005,1757682639120,-480.0,0.00013698,2]
[385197006,1757682639129,-480.0,0.00013698,2]
[385197007,1757682639139,-480.0,0.00013698,2]
[385197008,1757682639148,-480.0,0.00013698,2]
[385197009,1757682639157,-480.0,0.00013698,2]
[385197010,1757682639166,-480.0,0.00013698,2]
[385197011,1757682639175,-484.61949689,0.00013698,2]
[385197012,1757682639185,-480.0,0.00013698,2]
[385197013,1757682639194,-484.63800932,0.00013698,2]
[385197014,1757682639203,-480.0,0.00013698,2]
[385197015,1757682639212,-480.0,0.00013698,2]
[385197016,1757682639222,-480.0,0.00013698,2]
[385197017,1757682639231,-480.0,0.00013698,2]
[385197018,1757682639240,-480.0,0.00013698,2]
[385197019,1757682639249,-480.0,0.00013698,2]
[385197020,1757682639259,-480.0,0.00013698,2]
[385197021,1757682639268,-480.0,0.00013698,2]
[385197022,1757682639278,-485.40139364,0.00013698,2]
[385197023,1757682639287,-480.0,0.00013698,2]
[385197024,1757682639296,-480.0,0.00013698,2]
[385197025,1757682639306,-480.0,0.00013698,2]
[385197026,1757682639315,-480.0,0.00013698,2]
[385197027,1757682639324,-480.0,0.00013698,2]
[385197028,1757682639334,-592.40861969,0.00013698,2]
[385197029,1757682639343,-480.0,0.00013698,2]
[385197030,1757682639352,-480.0,0.00013698,2]
[385197031,1757682639361,-167.17,0.00013698,2]
[385197032,1757682639370,-622.92635385,0.00013698,2]
[385197033,1757682639379,-480.0,0.00013698,2]
[385197034,1757682639389,-480.0,0.00013698,2]
[385197035,1757682639398,-480.0,0.00013698,2]
[385197036,1757682639407,-480.0,0.00013698,2]
[385197037,1757682639416,-480.0,0.00013698,2]
[385197038,1757682639425,-480.0,0.00013698,2]
[385197039,1757682639434,-480.0,0.00013698,2]
[385197040,1757682639444,-480.0,0.00013698,2]
[385197041,1757682639453,-480.0,0.00013698,2]
[385197042,1757682639462,-480.0,0.00013698,2]
[385197043,1757682639472,-480.0,0.00013698,2]
[385197044,1757682639480,-480.0,0.00013698,2]
[385197045,1757682639490,-480.0,0.00013698,2]
[385197046,1757682639499,-610.13395861,0.00013698,2]
[385197047,1757682639508,-480.0,0.00013698,2]
[385197048,1757682639517,-481.91308891,0.00013698,2]
[385197049,1757682639526,-572.91453078,0.00013698,2]
[385197050,1757682639536,-480.0,0.00013698,2]
[385197051,1757682639545,-480.0,0.00013698,2]
[385197052,1757682639554,-281.93970919,0.00013698,2]
[385197053,1757682639564,-480.0,0.00013698,2]
[385197054,1757682639573,-480.0,0.00013698,2]
[385197055,1757682639582,-480.0,0.00013698,2]
[385197056,1757682639592,-480.0,0.00013698,2]
[385197057,1757682639601,-480.0,0.00013698,2]
[385197058,1757682639610,-480.0,0.00013698,2]
[385197059,1757682639734,-480.0,0.00013698,2]
[385197060,1757682639745,-480.0,0.00013698,2]
[385197061,1757682639754,-480.0,0.00013698,2]
[385197062,1757682639764,-487.12324655,0.00013698,2]
[385197063,1757682639773,-480.0,0.00013698,2]
[385197064,1757682639782,-480.0,0.00013698,2]
[385197065,1757682639792,-480.0,0.00013698,2]
[385197066,1757682639801,-480.0,0.00013698,2]
[385197067,1757682639811,-480.0,0.00013698,2]
[385197068,1757682639824,-480.0,0.00013698,2]
[385197069,1757682639834,-482.39717279,0.00013698,2]
[385197070,1757682639844,-480.0,0.00013698,2]
[385197071,1757682639856,-198.77364617,0.00013698,2]
[385197072,1757682639867,-480.0,0.00013698,2]
[385197073,1757682639876,-480.0,0.00013698,2]
[385197074,1757682639886,-480.0,0.00013698,2]
[385197075,1757682639897,-480.0,0.00013698,2]
[385197076,1757682639907,-480.0,0.00013698,2]
[385197077,1757682639916,-480.0,0.00013698,2]
[385197078,1757682639925,-480.0,0.00013698,2]
[385197079,1757682639934,-486.48237104,0.00013698,2]
[385197080,1757682639943,-480.0,0.00013698,2]
[385197081,1757682639953,-480.0,0.00013698,2]
[385197082,1757682639962,-480.0,0.00013698,2]
[385197083,1757682639971,-480.0,0.00013698,2]
[385197084,1757682639980,-480.0,0.00013698,2]
[385197085,1757682639989,-480.0,0.00013698,2]
[385197086,1757682639999,-480.0,0.00013698,2]
[385197087,1757682640008,-480.0,0.00013698,2]
[385197088,1757682640017,-480.0,0.00013698,2]
[385197089,1757682640026,-480.0,0.00013698,2]
[385197090,1757682640036,-482.40003297,0.00013698,2]
[385197091,1757682640045,-578.58328159,0.00013698,2]
[385197092,1757682640055,-480.0,0.00013698,2]
[385197093,1757682640064,-480.0,0.00013698,2]
[385197094,1757682640074,-480.0,0.00013698,2]
[385197095,1757682640084,-225.21272891,0.00013698,2]
[385197096,1757682640094,-480.0,0.00013698,2]
[385197097,1757682640103,-482.40454939,0.00013698,2]
[385197098,1757682640113,-480.0,0.00013698,2]
[385197099,1757682640122,-317.29334356,0.00013698,2]
[385197101,1757682640132,-480.0,0.00013698,2]
[385197103,1757682640141,-480.0,0.00013698,2]
[385197105,1757682640150,-480.0,0.00013698,2]
[385197107,1757682640160,-480.0,0.00013698,2]
[385197109,1757682640169,-480.0,0.00013698,2]
[385197111,1757682640178,-480.0,0.00013698,2]
[385197113,1757682640187,-589.74,0.00013698,2]
[385197115,1757682640196,-480.0,0.00013698,2]
[385197117,1757682640206,-480.0,0.00013698,2]
[385197119,1757682640215,-480.0,0.00013698,2]
[385197121,1757682640224,-480.0,0.00013698,2]
[385197123,1757682640234,-480.0,0.00013698,2]
[385197125,1757682640243,-480.0,0.00013698,2]
[385197127,1757682640252,-480.0,0.00013698,2]
[385197129,1757682640261,-480.0,0.00013698,2]
[385197131,1757682640271,-480.0,0.00013698,2]
[385197133,1757682640280,-480.0,0.00013698,2]
[385197135,1757682640290,-480.0,0.00013698,2]
[385197137,1757682640299,-264.87546715,0.00013698,2]
[385197139,1757682640308,-480.0,0.00013698,2]
[385197141,1757682640318,-480.0,0.00013698,2]
[385197143,1757682640327,-296.47,0.00013698,2]
[385197145,1757682640337,-480.0,0.00013698,2]
[385197147,1757682640346,-480.0,0.00013698,2]
[385197149,1757682640355,-480.0,0.00013698,2]
[385197151,1757682640364,-480.0,0.00013698,2]
[385197153,1757682640375,-480.0,0.00013698,2]
[385197155,1757682640384,-480.0,0.00013698,2]
[385197157,1757682640394,-482.74554229,0.00013698,2]
[385197159,1757682640403,-480.0,0.00013698,2]
[385197161,1757682640413,-506.48192126,0.00013698,2]
[385197163,1757682640422,-480.0,0.00013698,2]
[385197165,1757682640431,-480.0,0.00013698,2]
[385197167,1757682640441,-480.0,0.00013698,2]
[385197168,1757682640450,-480.0,0.00013698,2]
[385197169,1757682640459,-480.0,0.00013698,2]
[385197170,1757682640467,-480.0,0.00013698,2]
[385197171,1757682640476,-480.0,0.00013698,2]
[385197172,1757682640486,-480.0,0.00013698,2]
[385197174,1757682640495,-480.0,0.00013698,2]
[385197176,1757682640504,-480.0,0.00013698,2]
[385197178,1757682640513,-570.6,0.00013698,2]
[385197180,1757682640523,-480.0,0.00013698,2]
[385197182,1757682640532,-480.0,0.00013698,2]
[385197184,1757682640541,-410.24646868,0.00013698,2]
[385197186,1757682640550,-480.0,0.00013698,2]
[385197188,1757682640559,-480.0,0.00013698,2]
[385197190,1757682640569,-480.0,0.00013698,2]
[385197192,1757682640578,-480.0,0.00013698,2]
[385197194,1757682640587,-480.0,0.00013698,2]
[385197196,1757682640596,-480.0,0.00013698,2]
[385197198,1757682640606,-480.0,0.00013698,2]
[385197200,1757682640615,-480.0,0.00013698,2]
[385197202,1757682640624,-314.17035389,0.00013698,2]
[385197204,1757682640633,-480.0,0.00013698,2]
[385197206,1757682640642,-480.0,0.00013698,2]
[385197208,1757682640652,-481.32564248,0.00013698,2]
[385197210,1757682640661,-480.0,0.00013698,2]
[385197212,1757682640671,-480.0,0.00013698,2]
[385197214,1757682640680,-481.74525601,0.00013698,2]
[385197216,1757682640689,-480.0,0.00013698,2]
[385197218,1757682640698,-480.0,0.00013698,2]
[385197220,1757682640707,-480.0,0.00013698,2]
[385197222,1757682640717,-480.0,0.00013698,2]
[385197224,1757682640726,-480.0,0.00013698,2]
[385197226,1757682640736,-480.0,0.00013698,2]
[385197228,1757682640745,-480.0,0.00013698,2]
[385197230,1757682640755,-480.0,0.00013698,2]
[385197232,1757682640765,-480.0,0.00013698,2]
[385197234,1757682640774,-480.0,0.00013698,2]
[385197236,1757682640784,-480.0,0.00013698,2]
[385197238,1757682640793,-480.0,0.00013698,2]
[385197241,1757682640802,-480.0,0.00013698,2]
[385197243,1757682640812,-480.0,0.00013698,2]
[385197244,1757682640825,-480.0,0.00013698,2]
[385197247,1757682640835,-483.23740924,0.00013698,2]
[385197249,1757682640845,-480.0,0.00013698,2]
[385197251,1757682640854,-482.03354135,0.00013698,2]
[385197253,1757682640865,-480.0,0.00013698,2]
[385197255,1757682640875,-481.52549031,0.00013698,2]
[385197257,1757682640884,-480.0,0.00013698,2]
[385197259,1757682640894,-480.0,0.00013698,2]
[385197261,1757682640903,-480.0,0.00013698,2]
[385197263,1757682640912,-480.0,0.00013698,2]
[385197265,1757682640922,-480.0,0.00013698,2]
[385197267,1757682640931,-480.0,0.00013698,2]
[385197269,1757682640940,-480.0,0.00013698,2]
[385197271,1757682640949,-480.0,0.00013698,2]
[385197273,1757682640958,-480.0,0.00013698,2]
[385197275,1757682640967,-480.0,0.00013698,2]
[385197277,1757682640976,-480.0,0.00013698,2]
[385197279,1757682640985,-497.36943673,0.00013698,2]
[385197281,1757682640995,-480.0,0.00013698,2]
[385197283,1757682641005,-480.0,0.00013698,2]
[385197285,1757682641014,-480.0,0.00013698,2]
[385197287,1757682641023,-480.0,0.00013698,2]
[385197289,1757682641032,-480.0,0.00013698,2]
[385197291,1757682641042,-480.0,0.00013698,2]
[385197293,1757682641051,-480.0,0.00013698,2]
[385197295,1757682641061,-480.0,0.00013698,2]
[385197297,1757682641070,-480.0,0.00013698,2]
[385197299,1757682641080,-480.0,0.00013698,2]
[385197301,1757682641090,-2246.98,0.00013698,2]
[385197303,1757682641100,-480.0,0.00013698,2]
[385197305,1757682641109,-480.0,0.00013698,2]
[385197307,1757682641119,-480.0,0.00013698,2]
[385197309,1757682641129,-480.0,0.00013698,2]
[385197311,1757682641138,-480.0,0.00013698,2]
[385197313,1757682641147,-481.33761272,0.00013698,2]
[385197315,1757682641156,-480.0,0.00013698,2]
[385197317,1757682641166,-480.0,0.00013698,2]
[385197319,1757682641175,-480.0,0.00013698,2]
[385197321,1757682641184,-480.0,0.00013698,2]
[385197323,1757682641194,-480.0,0.00013698,2]
[385197325,1757682641202,-480.0,0.00013698,2]
[385197327,1757682641212,-1045.22,0.00013698,2]
[385197329,1757682641222,-480.0,0.00013698,2]
[385197331,1757682641231,-480.0,0.00013698,2]
[385197333,1757682641242,-480.0,0.00013698,2]
[385197335,1757682641251,-480.0,0.00013698,2]
[385197337,1757682641260,-1091.84,0.00013698,2]
[385197339,1757682641269,-480.0,0.00013698,2]
[385197341,1757682641279,-576.16005323,0.00013698,2]
[385197342,1757682641288,-480.0,0.00013698,2]
[385197343,1757682641297,-480.0,0.00013698,2]
[385197344,1757682641307,-480.0,0.00013698,2]
[385197345,1757682641317,-480.0,0.00013698,2]
[385197346,1757682641326,-480.0,0.00013698,2]
[385197347,1757682641335,-480.0,0.00013698,2]
[385197348,1757682641344,-480.0,0.00013698,2]
[385197349,1757682641353,-480.0,0.00013698,2]
[385197351,1757682641363,-480.0,0.00013698,2]
[385197353,1757682641372,-366.71063781,0.00013698,2]
[385197355,1757682641381,-480.0,0.00013698,2]
[385197357,1757682641390,-480.0,0.00013698,2]
[385197359,1757682641399,-513.52016367,0.00013698,2]
[385197361,1757682641408,-480.0,0.00013698,2]
[385197362,1757682641417,-480.0,0.00013698,2]
[385197363,1757682641427,-480.0,0.00013698,2]
[385197364,1757682641436,-480.0,0.00013698,2]
[385197365,1757682641445,-480.0,0.00013698,2]
[385197366,1757682641454,-480.0,0.00013698,2]
[385197367,1757682641463,-480.0,0.00013698,2]
[385197368,1757682641473,-480.0,0.00013698,2]
[385197369,1757682641483,-400.0,0.00013698,2]
[385197370,1757682641492,-480.0,0.00013698,2]
[385197371,1757682641502,-6173.77,0.00013698,2]
[385197372,1757682641511,-480.0,0.00013698,2]
[385197373,1757682641520,-480.0,0.00013698,2]
[385197374,1757682641529,-480.0,0.00013698,2]
[385197375,1757682641539,-480.0,0.00013698,2]
[385197376,1757682641548,-480.0,0.00013698,2]
[385197377,1757682641558,-480.0,0.00013698,2]
[385197378,1757682641567,-480.0,0.00013698,2]
[385197379,1757682641577,-480.0,0.00013698,2]
[385197380,1757682641586,-480.0,0.00013698,2]
[385197381,1757682641596,-480.0,0.00013698,2]